[Event "10th Cherry Blossom Classic 2023"]
[Site "Dulles"]
[Date "2023.05.28"]
[Round "5.18"]
[White "Samuelson, Andrew"]
[Black "Prabhu, Naveen"]
[Result "0-1"]
[ECO "B12"]
[WhiteElo "2019"]
[BlackElo "2138"]
[Annotator "TA"]
[PlyCount "68"]
[EventDate "2023.05.24"]
[EventType "swiss"]
[EventCountry "USA"]
[SourceTitle "playchess.com"]
[Source "ChessBase"]
[SourceQuality "1"]
[TimeControl "5400+30"]

{[%evp 9,68,0,0,0,0,-6,0,-5,3,1,0,0,0,0,0,-7,0,-4,23,19,25,31,32,-14,-9,-27,43,-7,36,0,6,-7,-7,-35,0,-41,-56,-36,-26,-311,-291,-290,-286,-670,-657,-741,-705,-654,-630,-29979,-29980,-29990,-29991,-29995,-29996,-29996,-29997,-29997,-29998,-29998,-29999]} 1. e4 {[%emt 0:00:07]} c6 {[%emt 0:03:06]} 2. d4 {[%emt 0:00:11]} d5 {[%emt 0:00:03]} 3. e5 {[%emt 0:00:08]} c5 {[%emt 0:00:04]} 4. Nf3 {[%emt 0:00:06]} cxd4 {[%emt 0:00:05]} 5. Qxd4 {[%emt 0:00:20]} Nc6 {[%emt 0:00:10][%cal Bb8c6,Bc6b4,Bb4d3][%mdl 32]} 6. Qf4 {[%emt 0:00:05] B12: Caro-Kann: Advance Variation.} e6 {[%emt 0:00:04]} 7. Bd3 {[%emt 0:00:18]} Nb4 {[%emt 0:00:07]} 8. O-O {[%emt 0:00:08] The position is equal.} Nxd3 {[%emt 0:00:12]} (8... Bd7 {keeps more tension.} 9. Bxh7 Rxh7 10. Ng5 Nh6) 9. cxd3 {[%emt 0:00:06]} Ne7 {[%emt 0:01:27]} 10. Nc3 {[%emt 0:00:36]} Ng6 {[%emt 0:01:40]} 11. Qg4 {[%emt 0:02:08]} Be7 {[%emt 0:01:16]} 12. Re1 {[%emt 0:00:13]} O-O {[%emt 0:02:41]} 13. Bg5 {[%emt 0:02:50] [#]} f6 $146 {[%emt 0:26:09]} ({Predecessor:} 13... Bxg5 14. Nxg5 h6 15. Nf3 Bd7 16. a4 a5 17. h4 Rc8 18. Re3 Qb6 19. Nxd5 Qxb2 {0-1 Zelcic,R (2460)-Eingorn,V (2570) Bern op 1994 (8)}) 14. exf6 {[%emt 0:00:51]} gxf6 {[%emt 0:00:31]} (14... Bxf6 {simplifies} 15. Bxf6 Rxf6 16. d4 Bd7) 15. Bh6 {[%emt 0:00:24]} Rf7 {[%emt 0:00:17]} 16. h4 {[%emt 0:01:27]} (16. d4 $14) 16... Bf8 $11 {[%emt 0:12:20]} 17. Bxf8 {[%emt 0:00:23] [#] Hoping for Bh6.} (17. Bd2 $5 {[%cal Rh4h5]} e5 18. Qg3 $15) 17... Kxf8 {[%emt 0:00:26]} (17... e5 $1 $11 18. Qa4 Nxf8) 18. h5 {[%emt 0:05:08]} (18. Qb4+ $1 $14 Kg8 19. h5) 18... Ne7 {[%emt 0:02:47]} 19. Qb4 {[%emt 0:06:56]} a5 {[%emt 0:02:57]} 20. Qa3 {[%emt 0:00:45]} e5 {[%emt 0:04:13][%cal Be6e5,Be5e4][%mdl 32]} 21. Nb5 {[%emt 0:09:39]} Rg7 {[%emt 0:05:36]} (21... Bg4 $5 {[%cal Rg4f3]} 22. d4 e4 $15) 22. Nd6 {[%emt 0:10:06]} Ra6 {[%emt 0:13:11][%cal Ba8a6,Ba6f6,Bf6h6][%mdl 32]} 23. Nxc8 {[%emt 0:03:45]} Qxc8 {[%emt 0:00:01]} 24. d4 $2 {[%emt 0:04:26][%mdl 8192] Loses the game.} (24. Rec1 $11 Qd7 25. Rc5) 24... Qh3 $19 {[%emt 0:05:05][%csl Gg7][%cal Rh3g2] [#]} 25. g3 {[%emt 0:00:07]} e4 {[%emt 0:00:15] And now ...f5 would win.} ({Less strong is} 25... Qxh5 26. dxe5 f5 27. Rac1 $16 (27. e6 Kg8 $16)) 26. Nd2 $2 {[%emt 0:03:04]} (26. Rac1) 26... f5 {[%emt 0:02:30] aiming for ...Rh6.} (26... Qxh5 $2 {is the wrong capture.} 27. Rac1 $19) 27. Qe3 {[%emt 0:02:25] Repels Rh6} Rf6 {[%emt 0:01:30] Strongly threatening ...f4.} 28. Qf4 {[%emt 0:00:29]} Rg4 {[%emt 0:00:58]} 29. Qe5 {[%emt 0:00:18]} Rh6 {[%emt 0:01:51] Black mates.} 30. Nf1 {[%emt 0:00:32]} Qxh5 {[%emt 0:00:48][%csl Gh6][%cal Rh5h1]} 31. Nh2 {[%emt 0:02:09]} Qxh2+ {[%emt 0:00:07]} 32. Kf1 {[%emt 0:00:03]} Qh1+ {[%emt 0:00:06]} 33. Ke2 {[%emt 0:00:05]} Qf3+ {[%emt 0:00:04]} 34. Kd2 {[%emt 0:00:07]} Qd3+ {[%emt 0:00:04] Weighted Error Value: White=0.65/Black=0.07 (flawless)} 0-1

[Event "10th Cherry Blossom Classic 2023"]
[Site "Dulles"]
[Date "2023.05.28"]
[Round "5.19"]
[White "Vinod, Aarush"]
[Black "Kanli, Alperen"]
[Result "0-1"]
[ECO "B12"]
[WhiteElo "1914"]
[BlackElo "2111"]
[Annotator "TA"]
[PlyCount "104"]
[EventDate "2023.05.24"]
[EventType "swiss"]
[EventCountry "USA"]
[SourceTitle "playchess.com"]
[Source "ChessBase"]
[SourceQuality "1"]
[TimeControl "5400+30"]

{[%evp 9,104,0,0,14,0,-22,25,-22,17,16,29,21,55,57,56,55,36,27,25,35,26,0,25,24,19,-43,-40,-40,-33,-38,-37,-52,-18,-42,0,0,0,0,108,92,143,163,147,150,175,172,166,166,148,-336,-327,-577,-567,-566,-287,-288,-285,-293,-293,-289,-285,-285,-285,-407,-395,-962,-959,-1049,-1049,-1049,-1049,-1033,-1018,-961,-909,-1201,-1137,-1166,-1060,-5627,-10353,-29972,-29976,-29976,-29977,-29982,-29983,-29983,-29984,-29984,-29985,-29990,-29990,-29990,-29991,-29991,-29992]} 1. e4 {[%emt 0:01:33]} c6 {[%emt 0:00:09]} 2. d4 {[%emt 0:00:23]} d5 {[%emt 0:00:07]} 3. e5 {[%emt 0:00:06]} c5 {[%emt 0:00:03]} 4. dxc5 {[%emt 0:00:11]} e6 {[%emt 0:00:01]} 5. a3 {[%emt 0:00:16]} Bxc5 {[%emt 0:00:07]} 6. Qg4 {[%emt 0:00:08] B12: Caro-Kann: Advance Variation.} Ne7 {[%emt 0:05:35]} 7. Nf3 {[%emt 0:00:26]} Ng6 {[%emt 0:03:49]} (7... Qb6 {is more appropriate.}) 8. b4 {[%emt 0:02:17]} (8. Bd3 $142) 8... Bb6 {[%emt 0:00:04]} 9. Bd3 {[%emt 0:00:14]} Nc6 {[%emt 0:04:24]} 10. Bb2 {[%emt 0:01:11]} Qc7 {[%emt 0:01:49]} 11. O-O {[%emt 0:01:11]} O-O {[%emt 0:05:25][%cal Rc6e5]} 12. Re1 {[%emt 0:02:26]} f5 {[%emt 0:08:07]} 13. Qg3 {[%emt 0:13:05]} a5 $1 {[%emt 0:03:40]} 14. b5 {[%emt 0:03:09]} Nb8 {[%emt 0:01:18][%cal Bc6b8,Bb8d7,Bd7c5,Bc5e4][%mdl 32] [#]} 15. Nc3 $146 {[%emt 0:22:25]} ({Predecessor:} 15. c4 dxc4 16. Rc1 Rd8 17. Bf1 Qc5 18. Rc2 Qxb5 19. Nbd2 Ba7 20. Nxc4 Qa4 21. Rac1 Nc6 22. Ng5 Nf8 23. h4 Rd7 {½-½ Bontems,C (2230)-Pierron,P (2201) FRA Cup/21/1T/05 email 2021}) 15... a4 $1 {[%emt 0:00:52]} 16. Ne2 {[%emt 0:09:37] With the idea Ned4.} Nd7 {[%emt 0:00:17]} 17. Nf4 {[%emt 0:02:44]} (17. h4 $11) 17... Nxf4 $15 {[%emt 0:00:42]} 18. Qxf4 {[%emt 0:00:02]} Nc5 {[%emt 0:00:01]} (18... Qc5 19. Bd4 Qe7 20. Bxb6 Nxb6 21. Qd4 $14) 19. Bd4 {[%emt 0:03:27]} Bd7 {[%emt 0:01:27]} 20. Rab1 {[%emt 0:01:06]} Ne4 {[%emt 0:00:53] Black wants to play ...Bxd4.} 21. Qe3 {[%emt 0:07:17]} f4 {[%emt 0:03:17]} 22. Qe2 {[%emt 0:00:30]} Bxd4 {[%emt 0:01:04]} 23. Nxd4 {[%emt 0:00:03]} Qxe5 {[%emt 0:04:11]} (23... Qc3 $11 {keeps the balance.} 24. Bxe4 Qxd4) 24. Nf3 {[%emt 0:00:49][%mdl 64] Deflection} Qc3 {[%emt 0:06:26]} (24... Qf5 $142) 25. Bxe4 $16 {[%emt 0:00:06]} dxe4 {[%emt 0:00:04]} 26. Qxe4 {[%emt 0:00:05]} Qxa3 {[%emt 0:01:15]} 27. Ng5 {[%emt 0:02:40][%csl Gg5][%cal Re4h7]} (27. Qxb7 Rfd8 $16) 27... g6 {[%emt 0:02:21]} 28. Qxb7 {[%emt 0:03:15]} Qe7 {[%emt 0:00:22] [#]} 29. Nxe6 $2 {[%emt 0:08:18][%mdl 8192] Now White is beyond hope.} Rfe8 $19 {[%emt 0:00:17]} 30. Qxa8 $2 {[%emt 0:16:30]} (30. h4 Bxe6 {[%mdl 64] Discovered Attack} 31. Qxe7 Rxe7 32. b6) 30... Rxa8 {[%emt 0:00:19]} 31. Nc7 {[%emt 0:00:00]} Qd8 {[%emt 0:00:32]} 32. Nxa8 {[%emt 0:00:00]} Qxa8 {[%emt 0:00:01]} 33. b6 {[%emt 0:00:00]} Bc6 {[%emt 0:00:18][%cal Oa4a3] aiming for ...a3!} 34. Re7 {[%emt 0:00:00] [#] Threatens to win with b7.} a3 $1 {[%emt 0:02:27]} (34... Bxg2 35. Ra7 (35. b7 Bxb7 36. Rbxb7 Qf8 $11) 35... Qc8 36. Kxg2 Qg4+ 37. Kf1 $11) 35. Ra7 {[%emt 0:00:00] [#]} Qd8 {[%emt 0:02:41] And now ...Qg5 would win.} ({But not} 35... Qf8 36. b7 Bxb7 37. Rbxb7 $18) 36. b7 {[%emt 0:00:00]} (36. f3 $142 Qd4+ 37. Kh1) 36... Bxb7 $1 {[%emt 0:00:12][%cal Oa3a2][%mdl 64] White must now prevent ...a2! Promotion} 37. Raxb7 $2 {[%emt 0:00:00][%mdl 4096] Endgame KQ-KRR} (37. h4 Bc6 38. c4) 37... a2 {[%emt 0:00:08]} 38. Re1 {[%emt 0:00:00]} Qa8 {[%emt 0:00:07]} 39. Rbb1 {[%emt 0:00:05]} axb1=Q {[%emt 0:00:10]} 40. Rxb1 {[%emt 0:00:03] KQ-KR} Qa2 {[%emt 0:00:14][%csl LRb1,LRc2][%cal Ra2b1]} 41. Re1 {[%emt 0:01:10]} Qxc2 {[%emt 0:00:02]} 42. h3 {[%emt 0:00:03]} Kg7 {[%emt 0:00:15]} 43. Rf1 {[%emt 0:00:26]} Kf6 {[%emt 0:00:04]} 44. Kh2 {[%emt 0:00:12]} g5 {[%emt 0:00:03]} 45. f3 {[%emt 0:00:21]} h5 {[%emt 0:00:01] Black mates.} 46. Kg1 {[%emt 0:00:18]} Qe2 {[%emt 0:01:02]} 47. Rb1 {[%emt 0:01:04]} g4 {[%emt 0:00:55]} 48. hxg4 {[%emt 0:00:39]} hxg4 {[%emt 0:00:21]} 49. fxg4 {[%emt 0:00:13]} Kg5 {[%emt 0:00:51]} 50. Rb7 {[%emt 0:02:34]} Qe1+ {[%emt 0:00:26]} ({Worse is} 50... Qxg4 51. Rg7+ Kh5 52. Rxg4 Kxg4 53. Kf2 $11) 51. Kh2 {[%emt 0:00:01]} Qg3+ {[%emt 0:00:02]} 52. Kh1 {[%emt 0:03:06]} f3 {[%emt 0:00:02] Artfully played by Kanli.   Weighted Error Value: White=0.96/Black=0.20 (precise)} ({Inferior is} 52... Kxg4 53. Rg7+ Kh5 54. Rxg3 fxg3 55. Kg1 $11) 0-1

[Event "10th Cherry Blossom Classic 2023"]
[Site "Dulles"]
[Date "2023.05.27"]
[Round "5.20"]
[White "Ling, Evan"]
[Black "ADU, Oladapo"]
[Result "1-0"]
[ECO "D37"]
[WhiteElo "1952"]
[BlackElo "2081"]
[Annotator "TA"]
[PlyCount "97"]
[EventDate "2023.05.24"]
[EventType "swiss"]
[EventCountry "USA"]
[SourceTitle "playchess.com"]
[Source "ChessBase"]
[SourceQuality "1"]
[TimeControl "5400+30"]

{[%evp 9,97,31,31,25,24,14,41,41,33,32,38,30,31,10,23,21,29,33,34,26,39,31,30,-14,30,21,26,25,27,17,24,23,60,45,54,37,36,35,72,18,80,77,77,49,49,48,44,32,74,73,66,71,66,65,76,63,92,81,84,0,0,-3,16,17,19,25,23,0,0,0,0,0,0,0,0,0,0,0,0,0,0,0,0,0,0,0,0,0,416,0]} 1. d4 {[%emt 0:00:03]} d5 {[%emt 0:00:13]} 2. c4 {[%emt 0:00:10]} e6 {[%emt 0:00:28]} 3. Nc3 {[%emt 0:00:09]} a6 {[%emt 1:31:19]} 4. cxd5 {[%emt 1:32:08]} exd5 {[%emt 0:00:06]} 5. Nf3 {[%emt 0:00:06]} Nf6 {[%emt 0:00:13]} 6. Bg5 {[%emt 0:00:51] D37: Queen's Gambit Declined: 5 Bf4.} c6 {[%emt 0:00:10]} 7. e3 {[%emt 1:32:25]} Be7 {[%emt 0:03:19]} (7... h6 $5 {[%cal Rh6g5]} 8. Bf4 Bf5 $11) 8. Bd3 $1 {[%emt 0:00:11] White is slightly better. The main line 8.Bd3 scores better than 8.Qc2.} O-O {[%emt 0:00:24]} 9. h3 {[%emt 0:00:32]} Re8 {[%emt 0:00:17]} 10. O-O {[%emt 0:00:28]} Nbd7 {[%emt 0:00:06][%cal Bb8d7,Bd7f8,Bf8g6][%mdl 32]} 11. Bf4 {[%emt 0:00:27]} Nf8 {[%emt 0:00:16]} 12. Qc2 {[%emt 0:06:42]} Ng6 {[%emt 0:00:13]} 13. Bg3 {[%emt 0:01:00]} Bd6 {[%emt 0:00:34]} 14. Bxd6 {[%emt 1:25:52]} Qxd6 {[%emt 0:00:02] [#]} 15. a3 $146 {[%emt 0:00:27]} ({Predecessor:} 15. Rab1 Qe7 16. b4 Ne4 17. a4 Bf5 18. b5 axb5 19. axb5 Ra3 20. Bxe4 dxe4 21. Nd2 Nh4 22. Ne2 Rd3 23. Nc4 cxb5 24. Ne5 Rc8 {1-0 Sarana,A (2675)-Oganian,M (2437) Titled Tuesday intern op 12th Apr Early blitz 2022 (11)}) 15... Qe7 {[%emt 0:01:22]} 16. Ng5 {[%emt 0:07:06]} Nf8 {[%emt 0:00:57]} 17. b4 {[%emt 0:04:51]} h6 {[%emt 0:00:21]} 18. Nf3 {[%emt 0:00:06]} Ne4 {[%emt 0:01:12]} 19. Na4 {[%emt 0:03:05]} Ng6 {[%emt 0:01:43]} 20. Nc5 {[%emt 0:00:23]} f5 {[%emt 1:28:26]} (20... Qf6 {is interesting.} 21. Kh2 b6 22. Na4 Rb8) 21. g3 {[%emt 0:06:36]} Nh8 {[%emt 0:04:16]} 22. Kg2 {[%emt 0:00:24]} (22. Ne5 Nf7 $11) 22... Nf7 {[%emt 0:00:32]} 23. h4 {[%emt 0:02:07]} g6 {[%emt 0:02:13]} 24. Be2 {[%emt 0:00:44]} ({White should play} 24. Rh1 $16) 24... Ned6 {[%emt 0:01:27]} (24... g5 $11) 25. Rh1 $16 {[%emt 1:05:27]} Kg7 {[%emt 0:01:06]} 26. Nd3 {[%emt 0:03:59] White has more active pieces.} Nc4 {[%emt 0:01:13]} 27. Nf4 {[%emt 0:00:14]} Be6 {[%emt 1:20:18]} 28. Bd3 {[%emt 0:17:13]} Qf6 {[%emt 0:04:46]} 29. h5 {[%emt 0:04:48]} g5 {[%emt 0:00:27]} 30. Nxe6+ {[%emt 0:00:33][%mdl 64] Remove Defender} Qxe6 {[%emt 0:03:15]} 31. Bxf5 {[%emt 0:00:44]} Qf6 {[%emt 0:00:02][%cal Oe8e3]} 32. Nh2 {[%emt 0:04:52] Hoping for Ng4.} Nfd6 {[%emt 0:02:04]} 33. Bd3 {[%emt 0:04:11]} Rxe3 {[%emt 1:02:11][%cal Oa8f8] [#]} 34. Bxc4 {[%emt 0:05:28]} (34. Rae1 $1 $16 Rxe1 35. Rxe1) 34... Nxc4 $11 {[%emt 0:00:10]} 35. Rhe1 {[%emt 0:06:05]} (35. Ng4 $2 Qf3+ 36. Kh3 Re4 $19) 35... Re6 {[%emt 0:10:15]} (35... Rxa3 36. Ng4 Qd6 37. Rxa3 Nxa3 38. Qf5 $16) (35... Ree8 {simplifies} 36. Qd3 Qf7 37. Qf3 Qxf3+ 38. Kxf3 Nd6) 36. Ng4 {[%emt 0:00:25]} Qf7 {[%emt 0:00:13]} 37. Rxe6 {[%emt 0:04:28]} Qxe6 {[%emt 0:00:01] [#]} 38. Re1 $1 {[%emt 0:02:01][%mdl 64] Deflection} Qxe1 {[%emt 0:00:27]} 39. Qg6+ {[%emt 0:00:04]} Kf8 $1 {[%emt 0:00:10]} 40. Qf6+ $1 {[%emt 0:02:51]} Ke8 {[%emt 0:00:53]} (40... Kg8 $2 41. Nxh6+ (41. Qg6+ Kf8 $11) 41... Kh7 42. Qg6+ Kh8 43. Nf7#) 41. Qh8+ {[%emt 0:00:13]} Ke7 {[%emt 0:01:33]} 42. Qxa8 {[%emt 0:00:04][%mdl 4096] Endgame KQN-KQN} Qe4+ {[%emt 0:01:38]} (42... Nxa3 43. Qxb7+ Kd6 44. Qb8+ (44. Qxa6 Nb5 $16) 44... Ke7 45. Qb7+ Ke8 46. Nf6+ Kf8 47. Qc8+ Kf7 48. Qg8+ (48. Qxc6 Qe6 $16) (48. Qxa6 Nc4 $16) 48... Kxf6 49. Qf8+ Ke6 50. Qe8+ {[%mdl 64] Skewer, Double Attack} (50. Qxh6+ Kd7 $16) 50... Kd6 51. Qxe1 $18) 43. f3 {[%emt 0:00:08]} Qe2+ {[%emt 0:00:40]} (43... Qxd4 $2 44. Qxb7+ (44. Nxh6 Qb2+ 45. Kh3 Nd6 $16) 44... Kd8 45. Qxc6 $16 (45. Nxh6 Qd3 $16)) 44. Kh3 {[%emt 0:11:59]} Qf1+ {[%emt 0:02:13]} (44... Nxa3 $2 45. Qxb7+ Ke6 46. Ne5 $18) 45. Kh2 {[%emt 0:00:03]} Nd6 {[%emt 0:02:34]} (45... Nxa3 $2 46. Qxb7+ Ke6 47. Nxh6 Qf2+ 48. Kh3 g4+ 49. Kxg4 Qxd4+ 50. f4 Qd1+ 51. Kg5 $18) 46. Qh8 {[%emt 0:00:28]} Qe2+ {[%emt 0:00:38]} 47. Kh3 {[%emt 0:12:52]} Qf1+ {[%emt 0:00:35]} 48. Kh2 {[%emt 0:00:05]} Kd7 $2 {[%emt 0:46:29][%mdl 8192]} (48... Qe2+ $11 {and Black is okay.} 49. Kh3 Qf1+ 50. Kh2) 49. Qe5 $2 {[%mdl 32768] An entertaining game by Ling.   Weighted Error Value: White=0.11 (very precise) /Black=0.24 (precise) . Loss on time!?} ({Worse is} 49. Nxh6 Qf2+ 50. Kh3 Qxf3 $11) ({Inferior is} 49. Qxh6 Qe2+ 50. Kh3 Qf1+ 51. Kh2 Qe2+ 52. Kh3 Qf1+ 53. Kh2 $11) ({Only move:} 49. Ne5+ $18 Kc7 50. Qxh6) 1-0

[Event "10th Cherry Blossom Classic 2023"]
[Site "Dulles"]
[Date "2023.05.28"]
[Round "5.21"]
[White "Su, Kevin"]
[Black "Michelle Catherina, P."]
[Result "1/2-1/2"]
[ECO "C55"]
[WhiteElo "2038"]
[BlackElo "2193"]
[Annotator "TA"]
[PlyCount "101"]
[EventDate "2023.05.24"]
[EventType "swiss"]
[EventCountry "USA"]
[SourceTitle "playchess.com"]
[Source "ChessBase"]
[SourceQuality "1"]
[TimeControl "5400+30"]

{[%evp 21,101,0,-9,-6,-7,0,0,0,0,0,0,0,0,-75,0,0,0,-8,0,-155,32,29,28,-7,-17,-3,-12,-16,108,107,104,112,111,107,104,110,111,29,37,8,9,0,0,0,0,0,0,0,0,0,0,0,0,-471,0,0,0,0,0,0,0,0,0,0,0,0,0,0,0,0,0,0,0,0,0,0,0,0,0,0,0,0]} 1. e4 {[%emt 0:02:39]} e5 {[%emt 0:05:37]} 2. Nf3 {[%emt 0:00:08]} Nc6 {[%emt 0:00:04]} 3. Bc4 {[%emt 0:00:05]} Nf6 {[%emt 0:00:06]} 4. d3 {[%emt 0:00:04]} Bc5 {[%emt 0:00:08]} 5. O-O {[%emt 0:00:08]} O-O {[%emt 0:04:07]} 6. c3 {[%emt 0:00:22]} d5 {[%emt 0:00:24]} 7. exd5 {[%emt 0:00:12]} Nxd5 {[%emt 0:00:02]} 8. Re1 {[%emt 0:01:18]} Bg4 {[%emt 0:01:41]} 9. h3 {[%emt 0:01:14]} Bh5 {[%emt 0:00:58]} 10. Nbd2 {[%emt 0:00:46][%cal Bb1d2,Bd2e4,Be4g3][%mdl 32]} Nb6 {[%emt 0:00:37]} 11. Bb5 {[%emt 0:00:32]} Bd6 {[%emt 0:05:32]} 12. Ne4 {[%emt 0:03:43] C55: Two Knights: 4 d3, 4 d4 exd4 5 e5 and Max Lange Attack.} f5 {[%emt 0:03:09]} 13. Ng3 {[%emt 0:01:02]} Bxf3 {[%emt 0:01:42]} 14. Qxf3 {[%emt 0:00:43]} Qd7 $1 {[%emt 0:01:05]} 15. a4 {[%emt 0:06:37] And now a5 would win.} a6 {[%emt 0:04:05]} 16. Bxc6 {[%emt 0:00:56]} bxc6 {[%emt 0:00:31]} 17. Bd2 {[%emt 0:02:07]} (17. a5 $11 Nd5 18. Nf1) 17... Rae8 {[%emt 0:03:26]} (17... e4 $1 $17 {[%cal Re4f3]} 18. Qe2 Bxg3 19. fxg3 exd3) 18. a5 $11 {[%emt 0:06:51]} Nd5 {[%emt 0:07:52] [#]} 19. c4 $146 {[%emt 0:06:16][%mdl 2048] White is pushing.} ({Predecessor:} 19. Nf1 Re6 20. Rad1 Qe8 21. c4 Ne7 22. d4 e4 23. Qb3 c5 24. dxc5 Bxc5 25. Be3 {0-1 Ashton,A (2395)-Blagojevic,D (2518) Salento op 3rd 2014 (9)}) 19... Nb4 {[%emt 0:04:36] White must now prevent ...Nc2.} 20. d4 $2 {[%emt 0:17:20]} exd4 $2 {[%emt 0:16:49]} (20... e4 $17 21. Qb3 Rb8 22. c5+ Nd5) 21. Rxe8 {[%emt 0:12:52]} Qxe8 {[%emt 0:04:47]} 22. Qb3 {[%emt 0:03:18]} (22. c5 $5 {[%cal Rc5d6]} Bxg3 23. fxg3 $14) 22... c5 {[%emt 0:05:18] Threatens to win with ...f4.} 23. Bxb4 {[%emt 0:00:57] Bd2 would be deadly.} Qb8 {[%emt 0:05:06][%mdl 64] Pin} 24. Ne2 {[%emt 0:14:18]} Be5 {[%emt 0:12:09] [#]} (24... Qxb4 $11 {keeps the balance.} 25. Qxb4 cxb4) 25. Qf3 $1 $16 {[%emt 0:01:21]} cxb4 {[%emt 0:02:39]} 26. Qd5+ {[%emt 0:00:48]} Kh8 {[%emt 0:00:12][%cal Oc7c6]} 27. Qxe5 {[%emt 0:02:57]} Re8 {[%emt 0:00:01] [#]} 28. Qxd4 {[%emt 0:00:56]} Rxe2 {[%emt 0:00:03][%mdl 4096] Endgame KQR-KQR} 29. Rd1 {[%emt 0:00:53]} (29. b3 $16) 29... h6 $1 $11 {[%emt 0:03:25]} 30. b3 {[%emt 0:01:34]} Qe8 {[%emt 0:01:08]} 31. Qc5 {[%emt 0:04:28]} (31. Qd8 {simplifies} Kh7 32. Qxe8 Rxe8 33. Kf1) 31... Qe5 $1 {[%emt 0:06:18]} 32. Qxb4 {[%emt 0:01:37]} c5 {[%emt 0:01:17]} 33. Qb7 {[%emt 0:03:24]} (33. Qb6 $5 Re1+ $8 34. Rxe1 Qxe1+ 35. Kh2 Qxf2 36. Qe6 $11 (36. Qxa6 Qf4+ 37. g3 Qf2+ 38. Kh1 Qf1+ 39. Kh2 Qf2+ 40. Kh1 Qf1+ 41. Kh2 Qf2+ $11)) 33... Re1+ {[%emt 0:02:06]} 34. Rxe1 {[%emt 0:00:07]} Qxe1+ {[%emt 0:00:00] KQ-KQ} 35. Kh2 {[%emt 0:00:06]} Qxf2 {[%emt 0:00:00]} 36. Qb8+ {[%emt 0:00:02]} (36. Qxa6 $5 Qf4+ $8 37. g3 Qf2+ 38. Kh1 $11) 36... Kh7 {[%emt 0:00:00]} 37. Qg3 $2 {[%emt 0:00:03][%mdl 8192] [#]} (37. Qc7 $11 {and White stays safe.}) 37... Qd2 $2 {[%emt 0:01:20]} ({Black should try} 37... Qxg3+ $1 $19 38. Kxg3 Kg6) 38. Qe5 {[%emt 0:00:30][%csl LRc5,LRf5] The position is equal.} Qxa5 {[%emt 0:00:18]} 39. Qxf5+ {[%emt 0:00:06]} Kg8 {[%emt 0:00:04]} 40. Qe6+ {[%emt 0:00:52]} Kh7 {[%emt 0:00:04]} 41. h4 {[%emt 0:00:29]} Qc7+ {[%emt 0:00:34]} 42. g3 {[%emt 0:00:51]} a5 {[%emt 0:00:16]} 43. Kh3 {[%emt 0:00:44]} h5 {[%emt 0:00:35]} 44. g4 {[%emt 0:01:29]} hxg4+ {[%emt 0:01:32]} 45. Kxg4 {[%emt 0:00:24]} g6 {[%emt 0:00:10]} 46. Qe8 {[%emt 0:00:39]} Qb7 {[%emt 0:00:40]} 47. Qe3 {[%emt 0:02:17]} Qg2+ {[%emt 0:00:22]} 48. Qg3 {[%emt 0:01:33]} Qe4+ {[%emt 0:00:20]} 49. Qf4 {[%emt 0:00:07]} Qg2+ {[%emt 0:00:43]} 50. Qg3 {[%emt 0:00:05]} Qe4+ {[%emt 0:00:11]} 51. Qf4 {[%emt 0:01:03] Weighted Error Value: White=0.35/Black=0.39} 1/2-1/2

[Event "10th Cherry Blossom Classic 2023"]
[Site "Dulles"]
[Date "2023.05.28"]
[Round "5.22"]
[White "Diao, Matthew Guo"]
[Black "Martin, Sam B"]
[Result "1-0"]
[ECO "D47"]
[WhiteElo "1973"]
[BlackElo "2067"]
[Annotator "TA"]
[PlyCount "55"]
[EventDate "2023.05.24"]
[EventType "swiss"]
[EventCountry "USA"]
[SourceTitle "playchess.com"]
[Source "ChessBase"]
[SourceQuality "1"]
[TimeControl "5400+30"]

{[%evp 17,55,0,0,0,36,50,52,50,57,67,65,60,124,130,135,134,130,118,248,198,179,135,144,129,171,170,299,6,4,0,166,68,394,382,389,291,550,584,2215,1557]} 1. d4 {[%emt 0:02:14]} d5 {[%emt 0:00:37]} 2. c4 {[%emt 0:00:25]} e6 {[%emt 0:00:10]} 3. Nc3 {[%emt 0:00:32]} c6 {[%emt 0:00:01]} 4. e3 {[%emt 0:00:16][%cal Be2e3,Be3e4,Be4e5][%mdl 32]} Nf6 {[%emt 0:00:02]} 5. Nf3 {[%emt 0:00:09]} Nbd7 {[%emt 0:00:04]} 6. Bd3 {[%emt 0:00:09]} dxc4 {[%emt 0:00:13]} 7. Bxc4 {[%emt 0:00:06]} b5 {[%emt 0:00:08][%cal Bb7b5,Bb5b4][%mdl 32]} 8. Bd3 {[%emt 0:00:07]} Bb7 {[%emt 0:00:13]} 9. e4 {[%emt 0:00:11]} b4 $1 {[%emt 0:00:24]} 10. Na4 {[%emt 0:00:10] D47: Semi-Slav: Meran System.} Rc8 {[%emt 0:00:35]} 11. e5 {[%emt 0:03:23]} Nd5 {[%emt 0:00:04]} 12. Ng5 $1 {[%emt 0:20:30][%cal Og5e6] White is slightly better.} Be7 {[%emt 0:13:08]} 13. Ne4 {[%emt 0:22:58] [#]} Qa5 $146 {[%emt 0:24:30]} ({Predecessor:} 13... O-O 14. Qg4 f5 15. exf6 N7xf6 16. Qxe6+ Kh8 17. O-O Rc7 18. Ng5 Bc8 19. Qe2 Bd6 {½-½ Borchert,S (1920)-Schmidt,J (2037) GER HS-166 email 2014}) 14. O-O {[%emt 0:05:17]} c5 {[%emt 0:04:27]} (14... O-O $14) 15. Naxc5 $16 {[%emt 0:02:30]} Nxc5 {[%emt 0:00:06]} 16. dxc5 {[%emt 0:00:41]} Bxc5 {[%emt 0:00:16]} 17. Qg4 {[%emt 0:01:46]} g6 {[%emt 0:01:22]} (17... Kf8 $16) 18. Bg5 {[%emt 0:13:55] Qh4 would be deadly.} h6 {[%emt 0:11:27]} 19. Bf6 {[%emt 0:08:44]} Nxf6 {[%emt 0:01:15]} 20. Nxf6+ {[%emt 0:00:38]} Ke7 {[%emt 0:00:02]} 21. Bxg6 $1 {[%emt 0:04:09]} Qc7 {[%emt 0:27:21] [#]} (21... fxg6 $142 22. Qxg6 Rhf8) 22. Qh4 $2 {[%emt 0:05:44]} Qxe5 $11 {[%emt 0:01:13]} 23. Nh7+ {[%emt 0:05:04]} Kd7 $2 {[%emt 0:02:54] [#]} (23... f6 $11 {and Black stays safe.} 24. Rad1 Rhg8 25. Qxh6 (25. Rfe1 Rcd8 $11) 25... Bd5) 24. Rfe1 {[%emt 0:00:53]} ({White should try} 24. Rae1 $1 $18 {[%cal Re1e5]} Qg7 25. Nf6+ Kc7 26. Qf4+ Kb6 27. Nd7+ Ka5 28. Nxc5 (28. Bxf7 $2 Qxg2#) (28. Qxf7 Qxf7 29. Bxf7 Bd4 $14) 28... Rxc5 29. Qxf7) 24... Be7 $2 {[%emt 0:10:18][%mdl 8192]} (24... Qxb2 $14 25. Nf6+ Kc7) 25. Rad1+ $18 {[%emt 0:00:58]} ({Less strong is} 25. Qxh6 Bg5 26. Qxg5 (26. Rad1+ Kc7 $18) 26... Qxg5 27. Nxg5 fxg6 28. Rxe6 Rhg8 29. Rd1+ Kc7 $18) 25... Bd5 {[%emt 0:00:03]} 26. Qh3 {[%emt 0:01:00]} ({Inferior is} 26. Rxe5 Bxh4 27. Be4 (27. Bxf7 Kc7 $17) 27... Be7 $11) 26... Qd6 {[%emt 0:00:31]} (26... Qxe1+ 27. Rxe1 fxg6) 27. Bxf7 {[%emt 0:00:16]} Rxh7 {[%emt 0:01:18] [#]} 28. Rxd5 $1 {[%emt 0:00:31][%mdl 576] Remove Defender, Decoy. Magnificent play by Diao!   Weighted Error Value: White=0.41/Black=0.97} 1-0